[Event "Titled Tuesday Blitz December 20 Late 2022"]
[White "Suder, Jakub"]
[Black "Polster, Christian"]
[WhiteFideId "1195310"]
[BlackFideId "12965081"]
[WhiteElo "2245"]
[BlackElo "2195"]
[Result "0-1"]
[Round "08"]
[TimeControl "180+1"]
[Date "2022.12.21"]
[WhiteClock "0:00:26"]
[BlackClock "0:00:05"]

1. d4 {[%clk 0:03:00]}  d5 {[%clk 0:02:55]} 2. c4 {[%clk 0:03:01]}  e6 {[%clk 0:02:54]} 3. Nc3 {[%clk 0:03:01]}  c6 {[%clk 0:02:52]} 4. e4 {[%clk 0:03:00]}  dxe4 {[%clk 0:02:52]} 5. Nxe4 {[%clk 0:03:01]}  Bb4+ {[%clk 0:02:52]} 6. Bd2 {[%clk 0:03:02]}  Qxd4 {[%clk 0:02:53]} 7. Bxb4 {[%clk 0:03:02]}  Qxe4+ {[%clk 0:02:53]} 8. Be2 {[%clk 0:03:03]}  Na6 {[%clk 0:02:53]} 9. Ba5 {[%clk 0:03:03]}  b6 {[%clk 0:02:51]} 10. Qd6 {[%clk 0:03:03]}  Bd7 {[%clk 0:02:25]} 11. Rd1 {[%clk 0:03:03]}  O-O-O {[%clk 0:02:22]} 12. Bc3 {[%clk 0:03:03]}  Nf6 {[%clk 0:02:21]} 13. Nf3 {[%clk 0:03:00]}  c5 {[%clk 0:02:05]} 14. Ne5 {[%clk 0:02:47]}  Ba4 {[%clk 0:01:57]} 15. f3 {[%clk 0:01:57]}  Rxd6 {[%clk 0:00:56]} 16. fxe4 {[%clk 0:01:45]}  Bxd1 {[%clk 0:00:54]} 17. Nxf7 {[%clk 0:01:42]}  Rd7 {[%clk 0:00:45]} 18. Nxh8 {[%clk 0:01:40]}  Bxe2 {[%clk 0:00:43]} 19. Kxe2 {[%clk 0:01:40]}  Nxe4 {[%clk 0:00:40]} 20. Rf1 {[%clk 0:01:39]}  Nxc3+ {[%clk 0:00:38]} 21. bxc3 {[%clk 0:01:39]}  Nb8 {[%clk 0:00:37]} 22. Rf8+ {[%clk 0:01:35]}  Kc7 {[%clk 0:00:37]} 23. Nf7 {[%clk 0:01:33]}  Nc6 {[%clk 0:00:31]} 24. Ng5 {[%clk 0:01:33]}  h6 {[%clk 0:00:21]} 25. Nxe6+ {[%clk 0:01:33]}  Kd6 {[%clk 0:00:21]} 26. Nf4 {[%clk 0:01:32]}  Re7+ {[%clk 0:00:19]} 27. Kf2 {[%clk 0:01:26]}  Ne5 {[%clk 0:00:19]} 28. Rd8+ {[%clk 0:01:24]}  Kc6 {[%clk 0:00:16]} 29. Nd5 {[%clk 0:01:17]}  Rf7+ {[%clk 0:00:16]} 30. Kg3 {[%clk 0:01:18]}  Nxc4 {[%clk 0:00:14]} 31. Nf4 {[%clk 0:01:13]}  Nd6 {[%clk 0:00:11]} 32. Ng6 {[%clk 0:01:08]}  Ne4+ {[%clk 0:00:10]} 33. Kh3 {[%clk 0:01:04]}  Kc7 {[%clk 0:00:10]} 34. Ra8 {[%clk 0:00:59]}  Kb7 {[%clk 0:00:10]} 35. Re8 {[%clk 0:00:54]}  Nxc3 {[%clk 0:00:09]} 36. Ne5 {[%clk 0:00:53]}  Rc7 {[%clk 0:00:09]} 37. a3 {[%clk 0:00:52]}  Nb1 {[%clk 0:00:09]} 38. Nc4 {[%clk 0:00:51]}  b5 {[%clk 0:00:08]} 39. Na5+ {[%clk 0:00:41]}  Ka6 {[%clk 0:00:07]} 40. Nb3 {[%clk 0:00:41]}  Nxa3 {[%clk 0:00:06]} 41. Re6+ {[%clk 0:00:41]}  Kb7 {[%clk 0:00:06]} 42. Na5+ {[%clk 0:00:41]}  Kc8 {[%clk 0:00:06]} 43. Re8+ {[%clk 0:00:41]}  Kd7 {[%clk 0:00:07]} 44. Rg8 {[%clk 0:00:41]}  Kd6 {[%clk 0:00:07]} 45. Rd8+ {[%clk 0:00:40]}  Ke6 {[%clk 0:00:07]} 46. Kg4 {[%clk 0:00:35]}  c4 {[%clk 0:00:07]} 47. Re8+ {[%clk 0:00:33]}  Kf7 {[%clk 0:00:07]} 48. Re3 {[%clk 0:00:32]}  b4 {[%clk 0:00:07]} 49. Rf3+ {[%clk 0:00:30]}  Kg6 {[%clk 0:00:06]} 50. h4 {[%clk 0:00:30]}  b3 {[%clk 0:00:06]} 51. h5+ {[%clk 0:00:29]}  Kh7 {[%clk 0:00:06]} 52. Nxc4 {[%clk 0:00:26]}  Rxc4+ {[%clk 0:00:05]} 53. Kh3 {[%clk 0:00:26]}  Rb4 {[%clk 0:00:05]} 0-1


[Site "https://www.chess.com"]

[Event "Titled Tuesday Blitz December 20 Late 2022"]
[White "Tang, Andrew"]
[Black "Rasulov, Vugar"]
[WhiteFideId "2059630"]
[BlackFideId "13402390"]
[WhiteElo "2582"]
[BlackElo "2509"]
[Result "1-0"]
[Round "08"]
[TimeControl "180+1"]
[Date "2022.12.20"]
[WhiteClock "0:00:16"]
[BlackClock "0:00:22"]

1. d4 {[%clk 0:02:52]}  c5 {[%clk 0:03:00]} 2. d5 {[%clk 0:02:47]}  d6 {[%clk 0:03:01]} 3. c4 {[%clk 0:02:47]}  b5 {[%clk 0:03:00]} 4. cxb5 {[%clk 0:02:47]}  a6 {[%clk 0:03:01]} 5. e4 {[%clk 0:02:46]}  Nf6 {[%clk 0:03:00]} 6. Nc3 {[%clk 0:02:46]}  g6 {[%clk 0:03:00]} 7. Nf3 {[%clk 0:02:46]}  Bg7 {[%clk 0:03:00]} 8. a4 {[%clk 0:02:45]}  O-O {[%clk 0:03:00]} 9. Ra3 {[%clk 0:02:45]}  e6 {[%clk 0:02:57]} 10. dxe6 {[%clk 0:02:40]}  Bxe6 {[%clk 0:02:58]} 11. Be2 {[%clk 0:02:33]}  axb5 {[%clk 0:02:54]} 12. Bxb5 {[%clk 0:02:31]}  Na6 {[%clk 0:02:48]} 13. Bf4 {[%clk 0:02:11]}  d5 {[%clk 0:02:39]} 14. exd5 {[%clk 0:02:00]}  Nxd5 {[%clk 0:02:40]} 15. Nxd5 {[%clk 0:01:53]}  Qxd5 {[%clk 0:02:38]} 16. Qe2 {[%clk 0:01:41]}  c4 {[%clk 0:02:07]} 17. O-O {[%clk 0:01:37]}  Nc5 {[%clk 0:02:07]} 18. Ne5 {[%clk 0:01:37]}  Qd4 {[%clk 0:01:57]} 19. Bg3 {[%clk 0:01:23]}  Ne4 {[%clk 0:01:57]} 20. Nxc4 {[%clk 0:01:10]}  Bxc4 {[%clk 0:01:50]} 21. Bxc4 {[%clk 0:01:08]}  Nd2 {[%clk 0:01:36]} 22. Rd1 {[%clk 0:00:29]}  Rfd8 {[%clk 0:00:37]} 23. Rd3 {[%clk 0:00:17]}  Qxc4 {[%clk 0:00:36]} 24. Rxd8+ {[%clk 0:00:17]}  Rxd8 {[%clk 0:00:35]} 25. Qxc4 {[%clk 0:00:17]}  Nxc4 {[%clk 0:00:21]} 26. Rxd8+ {[%clk 0:00:16]}  Bf8 {[%clk 0:00:22]} 27. b3 {[%clk 0:00:17]}  Na5 {[%clk 0:00:22]} 28. Bd6 {[%clk 0:00:16]} 1-0


[Site "https://www.chess.com"]

[Event "Titled Tuesday Blitz December 20 Late 2022"]
[White "Tari, Aryan"]
[Black "Rustemov, Alexander"]
[WhiteFideId "1510045"]
[BlackFideId "4119002"]
[WhiteElo "2620"]
[BlackElo "2891"]
[Result "1-0"]
[Round "08"]
[TimeControl "180+1"]
[Date "2022.12.20"]
[WhiteClock "0:00:05"]
[BlackClock "0:00:07"]

1. e4 {[%clk 0:03:00]}  e6 {[%clk 0:02:59]} 2. d4 {[%clk 0:03:00]}  d5 {[%clk 0:02:58]} 3. Nc3 {[%clk 0:03:01]}  dxe4 {[%clk 0:02:58]} 4. Nxe4 {[%clk 0:03:01]}  Bd7 {[%clk 0:02:59]} 5. Nf3 {[%clk 0:03:01]}  Bc6 {[%clk 0:02:59]} 6. Ng3 {[%clk 0:02:56]}  Nd7 {[%clk 0:02:59]} 7. Bd3 {[%clk 0:02:55]}  Ngf6 {[%clk 0:02:59]} 8. O-O {[%clk 0:02:55]}  Be7 {[%clk 0:03:00]} 9. Re1 {[%clk 0:02:46]}  O-O {[%clk 0:03:00]} 10. c4 {[%clk 0:02:46]}  Bb4 {[%clk 0:03:00]} 11. Rf1 {[%clk 0:02:42]}  Be7 {[%clk 0:02:59]} 12. a3 {[%clk 0:02:41]}  a5 {[%clk 0:02:58]} 13. Re1 {[%clk 0:02:39]}  b6 {[%clk 0:02:57]} 14. Bf4 {[%clk 0:02:26]}  Bb7 {[%clk 0:02:55]} 15. Qe2 {[%clk 0:02:22]}  Re8 {[%clk 0:02:49]} 16. Rad1 {[%clk 0:02:21]}  c5 {[%clk 0:02:49]} 17. dxc5 {[%clk 0:02:22]}  bxc5 {[%clk 0:02:45]} 18. Ne5 {[%clk 0:02:17]}  Qc8 {[%clk 0:02:40]} 19. Nh5 {[%clk 0:02:10]}  Nxe5 {[%clk 0:02:31]} 20. Bxe5 {[%clk 0:02:10]}  Qc6 {[%clk 0:02:31]} 21. Nf4 {[%clk 0:02:06]}  g5 {[%clk 0:02:10]} 22. Bxf6 {[%clk 0:02:01]}  Bxf6 {[%clk 0:02:07]} 23. Qg4 {[%clk 0:01:59]}  h6 {[%clk 0:01:52]} 24. h4 {[%clk 0:01:44]}  Rad8 {[%clk 0:01:40]} 25. hxg5 {[%clk 0:01:44]}  hxg5 {[%clk 0:01:39]} 26. Nh5 {[%clk 0:01:30]}  Be7 {[%clk 0:01:28]} 27. Be4 {[%clk 0:01:29]}  Qc7 {[%clk 0:01:25]} 28. Qf3 {[%clk 0:00:48]}  Bxe4 {[%clk 0:01:20]} 29. Rxe4 {[%clk 0:00:41]}  Rxd1+ {[%clk 0:01:18]} 30. Qxd1 {[%clk 0:00:42]}  Rd8 {[%clk 0:01:18]} 31. Qc2 {[%clk 0:00:38]}  Qd7 {[%clk 0:01:15]} 32. Ng3 {[%clk 0:00:17]}  Qd1+ {[%clk 0:01:14]} 33. Qxd1 {[%clk 0:00:15]}  Rxd1+ {[%clk 0:01:15]} 34. Kh2 {[%clk 0:00:16]}  Rb1 {[%clk 0:01:07]} 35. Re2 {[%clk 0:00:15]}  Bf6 {[%clk 0:01:08]} 36. Ne4 {[%clk 0:00:16]}  Bxb2 {[%clk 0:01:03]} 37. a4 {[%clk 0:00:16]}  Bd4 {[%clk 0:01:01]} 38. Nxg5 {[%clk 0:00:16]}  Rb4 {[%clk 0:01:00]} 39. f4 {[%clk 0:00:16]}  Rxa4 {[%clk 0:00:58]} 40. f5 {[%clk 0:00:15]}  exf5 {[%clk 0:00:56]} 41. Re7 {[%clk 0:00:15]}  Rxc4 {[%clk 0:00:47]} 42. Nxf7 {[%clk 0:00:12]}  Kf8 {[%clk 0:00:43]} 43. Ra7 {[%clk 0:00:11]}  a4 {[%clk 0:00:40]} 44. Kh3 {[%clk 0:00:11]}  Rc3+ {[%clk 0:00:38]} 45. Kh4 {[%clk 0:00:11]}  a3 {[%clk 0:00:34]} 46. Nd6 {[%clk 0:00:06]}  f4 {[%clk 0:00:27]} 47. Kg5 {[%clk 0:00:04]}  c4 {[%clk 0:00:22]} 48. Ra8+ {[%clk 0:00:04]}  Ke7 {[%clk 0:00:20]} 49. Nf5+ {[%clk 0:00:05]}  Ke6 {[%clk 0:00:17]} 50. Nxd4+ {[%clk 0:00:06]}  Kd5 {[%clk 0:00:18]} 51. Nb5 {[%clk 0:00:06]}  Rc2 {[%clk 0:00:15]} 52. Nxa3 {[%clk 0:00:05]}  Rxg2+ {[%clk 0:00:15]} 53. Kxf4 {[%clk 0:00:06]}  Ra2 {[%clk 0:00:11]} 54. Ra5+ {[%clk 0:00:05]}  Kc6 {[%clk 0:00:10]} 55. Ke3 {[%clk 0:00:05]}  c3 {[%clk 0:00:09]} 56. Kd3 {[%clk 0:00:05]}  c2 {[%clk 0:00:10]} 57. Kd2 {[%clk 0:00:05]}  Kb7 {[%clk 0:00:09]} 58. Rb5+ {[%clk 0:00:04]}  Kc6 {[%clk 0:00:09]} 59. Rb3 {[%clk 0:00:04]}  Kc5 {[%clk 0:00:08]} 60. Nxc2 {[%clk 0:00:04]}  Kd6 {[%clk 0:00:08]} 61. Rb5 {[%clk 0:00:05]}  Kc6 {[%clk 0:00:08]} 62. Rh5 {[%clk 0:00:05]}  Kd6 {[%clk 0:00:08]} 63. Kd3 {[%clk 0:00:05]}  Ke7 {[%clk 0:00:08]} 64. Nd4 {[%clk 0:00:05]}  Ra1 {[%clk 0:00:08]} 65. Ke4 {[%clk 0:00:05]}  Re1+ {[%clk 0:00:08]} 66. Kd5 {[%clk 0:00:04]}  Rd1 {[%clk 0:00:08]} 67. Rh6 {[%clk 0:00:03]}  Kf7 {[%clk 0:00:09]} 68. Rb6 {[%clk 0:00:03]}  Rd2 {[%clk 0:00:08]} 69. Ke4 {[%clk 0:00:03]}  Rd1 {[%clk 0:00:08]} 70. Nf3 {[%clk 0:00:04]}  Rc1 {[%clk 0:00:08]} 71. Kf5 {[%clk 0:00:04]}  Rc5+ {[%clk 0:00:07]} 72. Ne5+ {[%clk 0:00:04]}  Ke7 {[%clk 0:00:07]} 73. Rb7+ {[%clk 0:00:05]}  Kd8 {[%clk 0:00:07]} 74. Ke6 {[%clk 0:00:04]}  Kc8 {[%clk 0:00:07]} 75. Rh7 {[%clk 0:00:04]}  Rc1 {[%clk 0:00:08]} 76. Kd6 {[%clk 0:00:05]}  Kb8 {[%clk 0:00:07]} 77. Nc6+ {[%clk 0:00:05]} 1-0


[Site "https://www.chess.com"]

[Event "Titled Tuesday Blitz December 20 Late 2022"]
[White "Torres Dominguez, David"]
[Black "Bryant, Todd"]
[WhiteFideId "2220857"]
[BlackFideId "2031299"]
[WhiteElo "2037"]
[BlackElo "2338"]
[Result "1-0"]
[Round "08"]
[TimeControl "180+1"]
[Date "2022.12.21"]
[WhiteClock "0:01:15"]
[BlackClock "0:00:13"]

1. e4 {[%clk 0:02:58]}  c5 {[%clk 0:02:59]} 2. Nf3 {[%clk 0:02:58]}  d6 {[%clk 0:02:59]} 3. d4 {[%clk 0:02:58]}  cxd4 {[%clk 0:03:00]} 4. Nxd4 {[%clk 0:02:59]}  Nf6 {[%clk 0:03:01]} 5. Nc3 {[%clk 0:02:59]}  g6 {[%clk 0:03:02]} 6. Be3 {[%clk 0:02:59]}  Bg7 {[%clk 0:03:02]} 7. f3 {[%clk 0:02:59]}  O-O {[%clk 0:03:03]} 8. Qd2 {[%clk 0:02:59]}  Nc6 {[%clk 0:03:03]} 9. O-O-O {[%clk 0:02:59]}  Bd7 {[%clk 0:03:03]} 10. h4 {[%clk 0:02:57]}  Rc8 {[%clk 0:03:03]} 11. h5 {[%clk 0:02:57]}  Nxh5 {[%clk 0:03:04]} 12. Nxc6 {[%clk 0:02:46]}  bxc6 {[%clk 0:02:57]} 13. Bh6 {[%clk 0:02:45]}  Bxh6 {[%clk 0:02:45]} 14. Qxh6 {[%clk 0:02:43]}  Nf6 {[%clk 0:02:46]} 15. e5 {[%clk 0:02:40]}  dxe5 {[%clk 0:02:42]} 16. Ne4 {[%clk 0:02:29]}  Re8 {[%clk 0:02:03]} 17. Bc4 {[%clk 0:01:43]}  Nh5 {[%clk 0:00:55]} 18. Ng5 {[%clk 0:01:19]}  Nf6 {[%clk 0:00:13]} 19. Bxf7+ {[%clk 0:01:15]}  Kh8 {[%clk 0:00:13]} 20. Qxh7+ {[%clk 0:01:14]}  Nxh7 {[%clk 0:00:13]} 21. Rxh7# {[%clk 0:01:15]} 1-0


[Site "https://www.chess.com"]

[Event "Titled Tuesday Blitz December 20 Late 2022"]
[White "Veiga, Jose Francisco R P Neves"]
[Black "Muhammad, Shahzeb"]
[WhiteFideId "1930087"]
[BlackFideId "7804806"]
[WhiteElo "2320"]
[BlackElo "2397"]
[Result "1-0"]
[Round "08"]
[TimeControl "180+1"]
[Date "2022.12.21"]
[WhiteClock "0:01:30"]
[BlackClock "0:00:05"]

1. e4 {[%clk 0:02:55]}  d5 {[%clk 0:02:49]} 2. exd5 {[%clk 0:02:55]}  Nf6 {[%clk 0:02:45]} 3. Nf3 {[%clk 0:02:53]}  Nxd5 {[%clk 0:02:45]} 4. d4 {[%clk 0:02:53]}  g6 {[%clk 0:02:44]} 5. c4 {[%clk 0:02:53]}  Nb6 {[%clk 0:02:44]} 6. c5 {[%clk 0:02:53]}  N6d7 {[%clk 0:02:42]} 7. Bc4 {[%clk 0:02:52]}  Bg7 {[%clk 0:02:42]} 8. O-O {[%clk 0:02:52]}  O-O {[%clk 0:02:42]} 9. Nc3 {[%clk 0:02:52]}  e5 {[%clk 0:02:41]} 10. Bg5 {[%clk 0:02:50]}  Bf6 {[%clk 0:02:40]} 11. Bxf6 {[%clk 0:02:49]}  Qxf6 {[%clk 0:02:35]} 12. Nd5 {[%clk 0:02:49]}  Qd8 {[%clk 0:02:35]} 13. Nxe5 {[%clk 0:02:48]}  Nc6 {[%clk 0:02:24]} 14. Nxc6 {[%clk 0:02:47]}  bxc6 {[%clk 0:02:24]} 15. Nc3 {[%clk 0:02:47]}  Nf6 {[%clk 0:02:22]} 16. Qa4 {[%clk 0:02:40]}  Kg7 {[%clk 0:02:14]} 17. Rad1 {[%clk 0:02:39]}  Bd7 {[%clk 0:02:06]} 18. Rfe1 {[%clk 0:02:38]}  Re8 {[%clk 0:02:03]} 19. Qc2 {[%clk 0:02:37]}  Qb8 {[%clk 0:01:57]} 20. h3 {[%clk 0:02:34]}  Qb4 {[%clk 0:01:55]} 21. Ne2 {[%clk 0:02:17]}  Rab8 {[%clk 0:01:44]} 22. Bb3 {[%clk 0:02:14]}  Bf5 {[%clk 0:01:42]} 23. Qc3 {[%clk 0:02:14]}  Qb7 {[%clk 0:01:24]} 24. g4 {[%clk 0:02:08]}  Be4 {[%clk 0:00:47]} 25. d5 {[%clk 0:02:06]}  h6 {[%clk 0:00:34]} 26. d6 {[%clk 0:02:00]}  Bd5 {[%clk 0:00:30]} 27. Bxd5 {[%clk 0:01:49]}  cxd5 {[%clk 0:00:30]} 28. d7 {[%clk 0:01:46]}  Re7 {[%clk 0:00:27]} 29. c6 {[%clk 0:01:45]}  Qb6 {[%clk 0:00:22]} 30. Nf4 {[%clk 0:01:39]}  Rxe1+ {[%clk 0:00:13]} 31. Rxe1 {[%clk 0:01:40]}  d4 {[%clk 0:00:09]} 32. Qc4 {[%clk 0:01:33]}  Qa5 {[%clk 0:00:07]} 33. Re7 {[%clk 0:01:31]}  Qd2 {[%clk 0:00:05]} 34. Qxf7+ {[%clk 0:01:30]} 1-0


[Site "https://www.chess.com"]

[Event "Titled Tuesday Blitz December 20 Late 2022"]
[White "Young, Ryan"]
[Black "Goroshkov, Maksym"]
[WhiteFideId "2049945"]
[BlackFideId "14142716"]
[WhiteElo "2444"]
[BlackElo "2258"]
[Result "0-1"]
[Round "08"]
[TimeControl "180+1"]
[Date "2022.12.21"]
[WhiteClock "0:00:09"]
[BlackClock "0:00:59"]

1. e4 {[%clk 0:03:00]}  e5 {[%clk 0:02:59]} 2. Nf3 {[%clk 0:03:01]}  d6 {[%clk 0:02:59]} 3. d4 {[%clk 0:03:01]}  Bg4 {[%clk 0:03:00]} 4. dxe5 {[%clk 0:02:57]}  Nd7 {[%clk 0:03:00]} 5. exd6 {[%clk 0:02:50]}  Bxd6 {[%clk 0:03:00]} 6. Be2 {[%clk 0:02:47]}  Ngf6 {[%clk 0:02:59]} 7. Nc3 {[%clk 0:02:47]}  Qe7 {[%clk 0:02:59]} 8. O-O {[%clk 0:02:44]}  O-O-O {[%clk 0:02:59]} 9. Be3 {[%clk 0:02:34]}  a6 {[%clk 0:02:56]} 10. a3 {[%clk 0:02:23]}  h5 {[%clk 0:02:43]} 11. b4 {[%clk 0:02:23]}  Ne5 {[%clk 0:02:34]} 12. b5 {[%clk 0:02:15]}  Nxf3+ {[%clk 0:02:31]} 13. Bxf3 {[%clk 0:02:15]}  Bxh2+ {[%clk 0:02:30]} 14. Kxh2 {[%clk 0:02:12]}  Rxd1 {[%clk 0:02:31]} 15. Bxd1 {[%clk 0:01:52]}  Qe5+ {[%clk 0:02:29]} 16. Kg1 {[%clk 0:01:46]}  Qxc3 {[%clk 0:02:28]} 17. bxa6 {[%clk 0:01:42]}  bxa6 {[%clk 0:02:23]} 18. Rb1 {[%clk 0:01:37]}  Bxd1 {[%clk 0:02:22]} 19. Rfxd1 {[%clk 0:01:37]}  Rd8 {[%clk 0:02:20]} 20. Rdc1 {[%clk 0:01:27]}  Nxe4 {[%clk 0:02:17]} 21. Ba7 {[%clk 0:01:28]}  Rd2 {[%clk 0:02:08]} 22. Rb3 {[%clk 0:01:21]}  Qf6 {[%clk 0:02:02]} 23. Rf3 {[%clk 0:01:19]}  Qd6 {[%clk 0:01:54]} 24. Rxf7 {[%clk 0:00:58]}  Rd1+ {[%clk 0:01:53]} 25. Rxd1 {[%clk 0:00:59]}  Qxd1+ {[%clk 0:01:53]} 26. Kh2 {[%clk 0:01:00]}  Qxc2 {[%clk 0:01:50]} 27. Be3 {[%clk 0:00:58]}  Qc4 {[%clk 0:01:23]} 28. Rf4 {[%clk 0:00:55]}  Qd5 {[%clk 0:01:18]} 29. Rf8+ {[%clk 0:00:51]}  Kb7 {[%clk 0:01:18]} 30. Rf4 {[%clk 0:00:49]}  Nf6 {[%clk 0:01:16]} 31. Rb4+ {[%clk 0:00:49]}  Kc8 {[%clk 0:01:16]} 32. f3 {[%clk 0:00:41]}  a5 {[%clk 0:01:07]} 33. Ra4 {[%clk 0:00:34]}  Qb5 {[%clk 0:01:04]} 34. Rh4 {[%clk 0:00:26]}  g5 {[%clk 0:01:02]} 35. Rh3 {[%clk 0:00:09]}  Qe5+ {[%clk 0:01:00]} 36. f4 {[%clk 0:00:09]}  Ng4+ {[%clk 0:00:59]} 0-1


[Site "https://www.chess.com"]

[Event "Titled Tuesday Blitz December 20 Late 2022"]
[White "Yuan, Qingyu"]
[Black "Blanco Acevedo, Cristobal Jose"]
[WhiteFideId "8609772"]
[BlackFideId "3900525"]
[WhiteElo "2359"]
[BlackElo "2273"]
[Result "1-0"]
[Round "08"]
[TimeControl "180+1"]
[Date "2022.12.21"]
[WhiteClock "0:00:09"]
[BlackClock "0:00:01"]

1. e4 {[%clk 0:03:00]}  c5 {[%clk 0:02:59]} 2. Nf3 {[%clk 0:03:01]}  Nc6 {[%clk 0:02:59]} 3. Bb5 {[%clk 0:03:01]}  e6 {[%clk 0:02:59]} 4. Bxc6 {[%clk 0:02:59]}  bxc6 {[%clk 0:02:59]} 5. d3 {[%clk 0:02:59]}  Ne7 {[%clk 0:02:58]} 6. Nbd2 {[%clk 0:02:59]}  Ng6 {[%clk 0:02:58]} 7. h4 {[%clk 0:02:59]}  h5 {[%clk 0:02:50]} 8. e5 {[%clk 0:03:00]}  Be7 {[%clk 0:02:48]} 9. g3 {[%clk 0:02:59]}  f6 {[%clk 0:02:46]} 10. Nc4 {[%clk 0:02:47]}  Ba6 {[%clk 0:02:43]} 11. Qe2 {[%clk 0:02:32]}  Bxc4 {[%clk 0:02:09]} 12. dxc4 {[%clk 0:02:33]}  Qc7 {[%clk 0:01:40]} 13. Bf4 {[%clk 0:01:56]}  Nxf4 {[%clk 0:01:08]} 14. gxf4 {[%clk 0:01:57]}  O-O-O {[%clk 0:01:08]} 15. O-O-O {[%clk 0:01:50]}  Rhe8 {[%clk 0:00:51]} 16. Rdg1 {[%clk 0:01:47]}  Bf8 {[%clk 0:00:37]} 17. Rg6 {[%clk 0:01:44]}  d5 {[%clk 0:00:30]} 18. exd6 {[%clk 0:01:23]}  Qxd6 {[%clk 0:00:28]} 19. Qe4 {[%clk 0:01:15]}  Rd7 {[%clk 0:00:19]} 20. Rgg1 {[%clk 0:01:14]}  Red8 {[%clk 0:00:19]} 21. b3 {[%clk 0:01:13]}  f5 {[%clk 0:00:10]} 22. Qe3 {[%clk 0:01:12]}  Be7 {[%clk 0:00:07]} 23. Rd1 {[%clk 0:00:39]}  Qxd1+ {[%clk 0:00:05]} 24. Rxd1 {[%clk 0:00:40]}  Rxd1+ {[%clk 0:00:05]} 25. Kb2 {[%clk 0:00:41]}  Bf6+ {[%clk 0:00:05]} 26. Ka3 {[%clk 0:00:41]}  R8d6 {[%clk 0:00:02]} 27. Qxc5 {[%clk 0:00:36]}  Kb7 {[%clk 0:00:02]} 28. Qb4+ {[%clk 0:00:35]}  Kc7 {[%clk 0:00:02]} 29. Qa5+ {[%clk 0:00:33]}  Kb7 {[%clk 0:00:02]} 30. c5 {[%clk 0:00:33]}  R6d5 {[%clk 0:00:02]} 31. Qb4+ {[%clk 0:00:29]}  Kc7 {[%clk 0:00:02]} 32. Qa4 {[%clk 0:00:27]}  Kb7 {[%clk 0:00:02]} 33. Qb4+ {[%clk 0:00:27]}  Kc7 {[%clk 0:00:02]} 34. Qa5+ {[%clk 0:00:28]}  Kb7 {[%clk 0:00:02]} 35. b4 {[%clk 0:00:27]}  Be7 {[%clk 0:00:02]} 36. Ne5 {[%clk 0:00:25]}  R1d4 {[%clk 0:00:02]} 37. Ng6 {[%clk 0:00:20]}  Bf6 {[%clk 0:00:01]} 38. Kb3 {[%clk 0:00:14]}  Rd2 {[%clk 0:00:01]} 39. b5 {[%clk 0:00:12]}  R2d4 {[%clk 0:00:01]} 40. Qa6+ {[%clk 0:00:12]}  Kb8 {[%clk 0:00:01]} 41. bxc6 {[%clk 0:00:08]}  Rxc5 {[%clk 0:00:01]} 42. Qb7# {[%clk 0:00:09]} 1-0


[Site "https://www.chess.com"]

[Event "Titled Tuesday Blitz December 20 Late 2022"]
[White "aidenzhouu"]
[Black "Tarnowska, Aleksandra"]
[BlackFideId "1180967"]
[WhiteElo "2395"]
[BlackElo "1776"]
[Result "1-0"]
[Round "08"]
[TimeControl "180+1"]
[Date "2022.12.21"]
[WhiteClock "0:00:24"]
[BlackClock "0:00:03"]

1. d4 {[%clk 0:03:00]}  d5 {[%clk 0:02:59]} 2. Bf4 {[%clk 0:03:00]}  Nf6 {[%clk 0:02:58]} 3. e3 {[%clk 0:03:00]}  c6 {[%clk 0:02:57]} 4. c4 {[%clk 0:03:00]}  Qb6 {[%clk 0:02:50]} 5. Qb3 {[%clk 0:02:58]}  Bf5 {[%clk 0:02:32]} 6. Nc3 {[%clk 0:02:58]}  Qxb3 {[%clk 0:02:29]} 7. axb3 {[%clk 0:02:58]}  a6 {[%clk 0:02:21]} 8. c5 {[%clk 0:02:55]}  Nbd7 {[%clk 0:02:03]} 9. h3 {[%clk 0:02:53]}  h6 {[%clk 0:01:59]} 10. Nf3 {[%clk 0:02:52]}  g5 {[%clk 0:01:43]} 11. Bh2 {[%clk 0:02:45]}  Bc2 {[%clk 0:01:41]} 12. b4 {[%clk 0:02:43]}  Rc8 {[%clk 0:01:21]} 13. Kd2 {[%clk 0:02:39]}  Bg6 {[%clk 0:01:13]} 14. Bd3 {[%clk 0:02:39]}  Ne4+ {[%clk 0:01:10]} 15. Ke2 {[%clk 0:02:32]}  Bg7 {[%clk 0:00:52]} 16. Bxe4 {[%clk 0:02:22]}  dxe4 {[%clk 0:00:47]} 17. Nd2 {[%clk 0:02:22]}  f5 {[%clk 0:00:47]} 18. Nc4 {[%clk 0:02:22]}  O-O {[%clk 0:00:43]} 19. Na5 {[%clk 0:02:15]}  f4 {[%clk 0:00:35]} 20. Nxb7 {[%clk 0:01:57]}  Rb8 {[%clk 0:00:33]} 21. Na5 {[%clk 0:01:57]}  Rxb4 {[%clk 0:00:32]} 22. Rhb1 {[%clk 0:01:54]}  Nb8 {[%clk 0:00:25]} 23. Ra4 {[%clk 0:01:51]}  Rxa4 {[%clk 0:00:21]} 24. Nxa4 {[%clk 0:01:51]}  e5 {[%clk 0:00:20]} 25. d5 {[%clk 0:01:33]}  cxd5 {[%clk 0:00:20]} 26. c6 {[%clk 0:01:34]}  Rc8 {[%clk 0:00:17]} 27. Nb6 {[%clk 0:01:34]}  Nxc6 {[%clk 0:00:15]} 28. Nxc8 {[%clk 0:01:33]}  Nxa5 {[%clk 0:00:15]} 29. Ne7+ {[%clk 0:01:33]}  Kf7 {[%clk 0:00:15]} 30. Nxd5 {[%clk 0:01:30]}  Bh5+ {[%clk 0:00:12]} 31. Kd2 {[%clk 0:01:26]}  Nb3+ {[%clk 0:00:08]} 32. Kc2 {[%clk 0:01:21]}  Nc5 {[%clk 0:00:06]} 33. g3 {[%clk 0:01:19]}  fxe3 {[%clk 0:00:05]} 34. Nxe3 {[%clk 0:01:15]}  Ke6 {[%clk 0:00:05]} 35. g4 {[%clk 0:01:15]}  Be8 {[%clk 0:00:05]} 36. b4 {[%clk 0:01:08]}  Nd3 {[%clk 0:00:04]} 37. Bg3 {[%clk 0:01:08]}  Bb5 {[%clk 0:00:04]} 38. Nf5 {[%clk 0:01:01]}  Bf6 {[%clk 0:00:03]} 39. Nxh6 {[%clk 0:00:59]}  Nf4 {[%clk 0:00:03]} 40. Nf5 {[%clk 0:00:55]}  Ne2 {[%clk 0:00:02]} 41. Rd1 {[%clk 0:00:52]}  Bd3+ {[%clk 0:00:01]} 42. Rxd3 {[%clk 0:00:48]}  exd3+ {[%clk 0:00:01]} 43. Kxd3 {[%clk 0:00:49]}  Nc1+ {[%clk 0:00:01]} 44. Kc4 {[%clk 0:00:44]}  Na2 {[%clk 0:00:01]} 45. f3 {[%clk 0:00:41]}  Nc1 {[%clk 0:00:01]} 46. Kc5 {[%clk 0:00:39]}  Ne2 {[%clk 0:00:02]} 47. Bh2 {[%clk 0:00:32]}  Bd8 {[%clk 0:00:02]} 48. Ng3 {[%clk 0:00:27]}  Nc3 {[%clk 0:00:02]} 49. Ne4 {[%clk 0:00:26]}  Nxe4+ {[%clk 0:00:02]} 50. fxe4 {[%clk 0:00:27]}  a5 {[%clk 0:00:01]} 51. b5 {[%clk 0:00:22]}  Bc7 {[%clk 0:00:01]} 52. b6 {[%clk 0:00:21]}  Bd6+ {[%clk 0:00:01]} 53. Kb5 {[%clk 0:00:21]}  a4 {[%clk 0:00:02]} 54. Kxa4 {[%clk 0:00:21]}  Kd7 {[%clk 0:00:02]} 55. Kb5 {[%clk 0:00:22]}  Kc8 {[%clk 0:00:02]} 56. Kc6 {[%clk 0:00:22]}  Be7 {[%clk 0:00:02]} 57. b7+ {[%clk 0:00:22]}  Kb8 {[%clk 0:00:02]} 58. Bxe5+ {[%clk 0:00:23]}  Ka7 {[%clk 0:00:03]} 59. b8=Q+ {[%clk 0:00:23]}  Ka6 {[%clk 0:00:03]} 60. Qb6# {[%clk 0:00:24]} 1-0


[Site "https://www.chess.com"]